bitfinex/quotes_SOLUSD_20260223
["timestamp","ask_amount","ask_price","bid_price","bid_amount"]
[1771873786101,14.54969653,78.99,78.951,1.41573758]
[1771873786297,14.54969653,78.99,78.941,12.66768852]
[1771873786298,6.62206649,79.009,78.97,14.54969653]
[1771873786484,50.6011459,79.05,78.941,95.00766393]
[1771873786485,1.46473961,78.989,78.951,1.41573758]
[1771873786685,1.46473961,78.989,78.961,1.41573758]
[1771873786884,1.46473961,78.989,78.941,44.53690983]
[1771873786885,1.46473961,79.005,78.971,1.41573758]
[1771873787909,14.01163657,79.004,78.981,1.38630631]
[1771873788416,14.01163657,79.004,78.968,1.38630631]
[1771873788417,1.35404962,78.999,78.968,1.38630631]
[1771873789310,44.30155434,79.004,78.961,1.58630631]
[1771873789311,1.35404962,78.989,78.961,1.58630631]
[1771873789893,1.35404962,78.979,78.961,0.2]
[1771873790294,12.6601509,78.988,78.962,1.38630631]
[1771873791821,1.35404962,78.991,78.962,1.38630631]
[1771873792025,1.35404962,78.989,78.962,1.38630631]
[1771873792199,1.35404962,78.989,78.961,0.2]
[1771873794509,1.35404962,78.987,78.961,0.2]
[1771873795211,1.35404962,78.979,78.961,0.2]
[1771873797802,14.01580352,78.978,78.961,0.2]
[1771873798306,1.35404962,78.977,78.961,0.2]
[1771873798927,12.66207455,78.976,78.961,0.2]
[1771873800217,12.66207455,78.976,78.955,1.38630631]
[1771873802904,1.35404962,78.975,78.948,1.38630631]
[1771873803298,1.35404962,78.975,78.961,0.2]
[1771873804300,12.66239521,78.974,78.961,0.2]
[1771873804816,1.35404962,78.999,78.963,1.38630631]
[1771873805019,1.35404962,78.999,78.962,12.66431954]
[1771873805020,1.35404962,79.006,78.981,1.38630631]
[1771873805201,1.35404962,79.006,78.981,1.58630631]
[1771873805697,3.69383402,79.017,78.981,1.58630631]
[1771873805698,1.35404962,79.016,78.981,1.58630631]
[1771873805899,1.35404962,79.016,78.991,1.38630631]
[1771873805900,1.35404962,79.015,78.991,1.38630631]
[1771873806104,1.35404962,79.015,78.983,1.38630631]
[1771873806305,14.54969653,79.02,78.983,1.38630631]
[1771873806306,1.35404962,79.013,78.983,1.38630631]
[1771873806711,1.35404962,79.013,78.985,1.38630631]
[1771873807222,1.35404962,79.009,78.985,1.38630631]
[1771873807422,1.35404962,79.009,78.981,0.2]
[1771873807617,1.35404962,78.999,78.969,1.38630631]
[1771873807806,1.35404962,78.989,78.962,1.38630631]
[1771873809618,12.6601509,78.988,78.962,1.38630631]
[1771873810323,1.35404962,78.987,78.962,1.38630631]
[1771873811411,1.35404962,78.987,78.961,0.2]
[1771873811607,1.35404962,78.985,78.961,0.2]
[1771873811829,1.35404962,78.985,78.961,1.58630631]
[1771873813118,1.35404962,78.985,78.961,1.38630631]
[1771873813812,12.6599046,78.99,78.963,1.38630631]
[1771873814017,1.35404962,78.998,78.963,1.38630631]
[1771873814613,1.35404962,78.998,78.971,1.38630631]
[1771873815318,12.65870855,78.997,78.971,1.38630631]
[1771873815630,12.65870855,78.997,78.972,12.66271589]
[1771873815811,12.65758695,79.004,78.973,1.38630631]
[1771873816007,1.35404962,79.003,78.973,1.38630631]
[1771873816929,1.35404962,79.003,78.981,1.38630631]
[1771873817529,3.69383402,79.022,78.981,1.38630631]
[1771873817530,1.35404962,79.009,78.981,1.38630631]
[1771873817741,12.65737203,79.006,78.981,1.38630631]
[1771873818312,14.10692325,79.006,78.981,1.38630631]
[1771873818514,1.44955122,78.999,78.943,1.39754804]
[1771873818736,5.42482045,78.98,78.951,1.39754804]
[1771873819033,1.44955122,78.989,78.951,1.39754804]
[1771873819622,1.44955122,78.989,78.95,5.42482045]
[1771873819623,1.44955122,78.987,78.953,1.39754804]
[1771873820731,1.36864818,78.985,78.955,1.38676063]
[1771873821237,1.36864818,78.979,78.948,1.38676063]
[1771873823422,1.36864818,78.977,78.948,1.38676063]
[1771873823931,5.42482045,78.97,78.948,1.38676063]
[1771873824119,1.36864818,78.969,78.938,1.38676063]
[1771873825517,1.36864818,78.967,78.938,1.38676063]
[1771873827046,1.36864818,78.949,78.916,1.38676063]
[1771873827352,5.42482045,78.96,78.916,1.38676063]
[1771873827353,1.36864818,78.939,78.916,1.38676063]
[1771873827942,14.03674443,78.939,78.916,1.38676063]
[1771873828248,12.66809625,78.939,78.9,5.4344783]
[1771873828433,1.36864818,78.919,78.882,12.67716335]
[1771873828633,1.36864818,78.929,78.89,5.4344783]
[1771873830342,1.36864818,78.927,78.893,1.38676063]
[1771873830944,1.36864818,78.927,78.901,1.38676063]
[1771873831329,3.69383402,78.952,78.901,1.38676063]
[1771873831330,1.36864818,78.934,78.901,1.38676063]
[1771873831530,1.36864818,78.942,78.911,1.38676063]
[1771873832629,1.36864818,78.939,78.913,1.38676063]
[1771873832834,1.36864818,78.939,78.91,5.4344783]
[1771873832835,1.36864818,78.939,78.902,1.38676063]
[1771873833028,5.4344783,78.93,78.902,1.38676063]
[1771873833254,14.55802782,78.93,78.902,1.38676063]
[1771873833633,1.36864818,78.931,78.902,1.38676063]
[1771873833833,14.55802782,78.94,78.911,1.38676063]
[1771873833834,1.36864818,78.938,78.911,1.38676063]
[1771873834230,1.36864818,78.938,78.901,12.67411059]
[1771873834231,1.36864818,78.938,78.904,1.38676063]
[1771873835754,1.36864818,78.936,78.911,1.06244538]
[1771873836764,1.36864818,78.936,78.901,12.67397577]
[1771873837143,1.36864818,78.936,78.91,14.55802782]
[1771873837749,12.66865142,78.935,78.911,1.38676063]
[1771873838669,14.55802782,78.93,78.911,1.38676063]
[1771873839462,14.0372996,78.935,78.912,12.67234387]
[1771873839646,1.36864818,78.935,78.913,1.38676063]
[1771873841359,1.36864818,78.935,78.914,12.6720227]
[1771873842770,14.55802782,78.94,78.915,1.38676063]
[1771873843547,1.36864818,78.938,78.911,1.38676063]
[1771873847270,1.36864818,78.938,78.912,14.0591045]
[1771873847766,1.44189223,78.936,78.912,14.0591045]
[1771873847966,12.66833044,78.937,78.899,1.31129243]
[1771873847967,1.44189223,78.929,78.899,1.31129243]
[1771873848168,14.55802782,78.91,78.882,1.31129243]
[1771873848464,14.55802782,78.9,78.882,1.31129243]
[1771873848662,1.44189223,78.909,78.882,1.31129243]
[1771873848861,44.33915654,78.937,78.891,1.31129243]
[1771873848862,14.55802782,78.92,78.891,1.31129243]
[1771873849046,1.44189223,78.919,78.891,1.31129243]
[1771873849661,1.44189223,78.917,78.892,12.67555645]
[1771873852156,1.44189223,78.917,78.892,1.31129243]
[1771873852853,14.55802782,78.92,78.892,1.31129243]
[1771873853052,12.66961446,78.929,78.892,1.31129243]
[1771873853354,1.44189223,78.928,78.892,1.31129243]
[1771873854474,1.44189223,78.928,78.894,1.31129243]
[1771873854673,14.110817,78.934,78.901,1.31129243]
[1771873855476,1.44189223,78.933,78.901,1.31129243]
[1771873855775,5.43428353,78.93,78.901,1.31129243]
[1771873856964,6.87617576,78.93,78.903,1.31129243]
[1771873859000,12.66496111,78.958,78.92,5.43428353]
[1771873859162,8.06917019,78.976,78.941,1.31129243]
[1771873859357,1.44189223,78.969,78.931,1.31129243]
[1771873859580,1.44189223,78.969,78.781,31.6675411]
[1771873859581,1.44189223,78.949,78.921,1.31129243]
[1771873859874,1.44189223,78.959,78.921,1.31129243]
[1771873860058,1.44189223,78.969,78.931,1.31129243]
[1771873860459,5.43428353,78.96,78.931,1.31129243]
[1771873860766,1.44189223,78.96,78.931,1.31129243]
[1771873860971,1.44189223,78.967,78.933,1.31129243]
[1771873861282,1.44189223,78.959,78.933,1.31129243]
[1771873863073,1.44189223,78.959,78.934,12.66881191]
[1771873863381,1.44189223,78.959,78.935,1.31129243]
[1771873863981,1.44189223,78.959,78.94,0.2]
[1771873865382,1.44189223,78.957,78.94,0.2]
[1771873865774,1.44189223,78.959,78.94,0.2]
[1771873866080,5.43428353,78.97,78.941,1.31129243]
[1771873866297,12.66114615,78.982,78.951,1.31129243]
[1771873866860,5.43428353,78.98,78.951,1.31129243]
[1771873867286,3.69383402,79.002,78.94,44.53737514]
[1771873867287,50.60033269,79.051,78.961,1.31129243]
[1771873867469,12.65678593,79.009,78.971,1.31129243]
[1771873868394,1.44189223,78.989,78.953,1.31129243]
[1771873868679,1.44189223,78.989,78.952,12.66592359]
[1771873868680,1.44189223,78.989,78.96,5.43428353]
[1771873868892,1.44189223,78.999,78.961,1.31129243]
[1771873869385,1.44189223,78.987,78.961,1.31129243]
[1771873869575,1.44189223,78.987,78.961,13.97571807]
[1771873870286,1.44189223,78.987,78.95,37.09975354]
[1771873870287,5.43428353,78.98,78.953,13.97692]
[1771873870488,1.44189223,78.979,78.953,12.66562757]
[1771873870681,5.43428353,78.99,78.961,1.31129243]
[1771873870881,12.65999063,78.989,78.961,1.31129243]
[1771873871594,14.10188286,78.989,78.963,1.31129243]
[1771873872478,1.44189223,78.988,78.965,1.31129243]
[1771873872678,1.44189223,78.988,78.955,1.31129243]
[1771873873581,1.44189223,78.987,78.955,1.31129243]
[1771873873777,1.44189223,78.987,78.961,1.31129243]
[1771873875096,1.44189223,78.985,78.961,1.31129243]
[1771873875299,1.44189223,78.985,78.963,1.31129243]
[1771873875999,12.65970321,78.991,78.963,1.31129243]
[1771873876195,1.44189223,78.99,78.963,1.31129243]
[1771873876502,1.44189223,78.989,78.963,1.31129243]
[1771873877201,1.44189223,78.989,78.964,12.66399878]
[1771873877402,1.44189223,78.989,78.964,13.97529121]
[1771873877703,1.4370438,78.997,78.965,1.34112745]
[1771873878002,14.09479097,79.003,78.971,1.54112745]
[1771873878185,1.4370438,79.002,78.971,1.54112745]
[1771873878889,1.4370438,79.002,78.981,0.2]
[1771873880087,1.4370438,79.0,78.981,1.54112745]
[1771873881305,1.4370438,79.0,78.981,0.2]
[1771873882590,1.39683869,78.989,78.971,0.2]
[1771873882905,1.39683869,78.989,78.918,50.68510313]
[1771873882906,1.39683869,78.979,78.958,12.66486971]
[1771873883215,1.39683869,78.985,78.96,12.66456829]
[1771873883507,1.39683869,78.979,78.955,1.38373473]
[1771873884590,1.39683869,78.979,78.962,12.66431954]
[1771873884791,1.39683869,78.977,78.942,1.38373473]
[1771873885009,1.39683869,78.977,78.947,1.38373473]
[1771873885605,1.39683869,78.977,78.951,12.66596459]
[1771873886402,1.39683869,78.977,78.954,12.66559165]
[1771873886596,1.39683869,78.977,78.953,1.38373473]
[1771873886802,31.64979224,78.99,78.962,1.38373473]
[1771873886803,1.39683869,78.983,78.962,1.38373473]
[1771873887404,1.39683869,78.983,78.961,12.66442894]
[1771873890217,1.39683869,78.983,78.961,1.38373473]
[1771873890995,14.5370658,78.99,78.961,1.38373473]
[1771873890996,15.93390449,78.99,78.961,1.38373473]
[1771873891195,28.59387884,78.99,78.961,1.38373473]
[1771873891411,1.39683869,78.989,78.961,1.38373473]
[1771873893197,1.39683869,78.979,78.954,1.38373473]
[1771873894018,1.39683869,78.985,78.954,1.38373473]
[1771873894502,1.39683869,78.985,78.961,1.38373473]
[1771873894821,1.39683869,78.988,78.961,1.38373473]
[1771873895300,1.39683869,78.988,78.963,1.38373473]
[1771873895701,5.42663598,79.0,78.971,1.38373473]
[1771873895896,18.08493646,79.0,78.971,1.38373473]
[1771873896106,14.05513917,79.0,78.971,1.38373473]
[1771873897902,1.39683869,78.999,78.973,1.38373473]
[1771873898201,12.65678593,79.009,78.972,12.66271589]
[1771873898202,1.39683869,79.005,78.981,1.38373473]
[1771873899513,12.65678593,79.009,78.975,1.38373473]
[1771873899514,1.39683869,78.999,78.975,1.38373473]
[1771873899812,1.39683869,78.999,78.941,5.36086188]
[1771873899813,1.39683869,78.989,78.967,12.66343039]
[1771873900523,1.39683869,78.989,78.963,1.38373473]
[1771873900697,1.39683869,78.987,78.963,1.38373473]
[1771873901818,1.39683869,78.985,78.964,14.04773351]
[1771873902116,1.39683869,78.985,78.965,1.38373473]
[1771873904903,1.39683869,78.986,78.966,12.66367803]
[1771873905102,1.39683869,78.986,78.967,1.38373473]
[1771873909115,5.42663598,78.99,78.967,1.38373473]
[1771873909312,1.40657046,78.989,78.967,1.38373473]
[1771873909714,1.40657046,78.989,78.969,1.32463767]
[1771873910344,1.40657046,78.998,78.969,1.32463767]
[1771873910626,1.40657046,78.998,78.971,1.32463767]
[1771873910931,1.40657046,78.998,78.968,12.6633573]
[1771873910932,1.40657046,79.005,78.981,1.32463767]
[1771873911108,0.2,79.01,78.983,1.32463767]
[1771873911513,0.2,79.01,78.991,1.32463767]
[1771873912011,1.40657046,79.008,78.98,1.32463767]
[1771873912207,1.40657046,78.999,78.974,12.66231416]
[1771873912403,1.40657046,78.999,78.975,1.32463767]
[1771873914428,1.40657046,78.999,78.976,13.98671222]
[1771873914925,1.40657046,78.999,78.976,12.66207455]
[1771873915230,1.60657046,79.01,78.99,5.42663598]
[1771873915730,1.60657046,79.01,78.991,1.32463767]
[1771873916728,1.60657046,79.01,78.991,13.98427215]
[1771873917236,1.60657046,79.01,78.992,1.32463767]
[1771873917854,1.60657046,79.01,78.961,5.36086188]
[1771873917855,1.40657046,79.008,78.974,1.32463767]
[1771873919612,1.40657046,79.008,78.976,1.32463767]
[1771873920225,1.40657046,79.008,78.981,1.32463767]
[1771873920531,1.40657046,79.007,78.981,1.32463767]
[1771873921638,1.40657046,79.005,78.981,1.32463767]
[1771873921838,0.2,79.04,78.982,1.32463767]
[1771873922015,1.40657046,79.039,79.001,1.32463767]
[1771873922429,18.27855334,79.04,78.995,1.32463767]
[1771873922430,1.40657046,79.029,78.995,1.32463767]
[1771873922825,1.40657046,79.019,78.991,1.32463767]
[1771873923019,1.40657046,79.025,78.991,1.32463767]
[1771873923725,1.40657046,79.023,79.0,5.42663598]
[1771873923920,1.40657046,79.023,78.993,1.32463767]
[1771873925630,1.40657046,79.019,78.993,1.32463767]
[1771873926028,1.40657046,79.019,78.995,1.32463767]
[1771873928430,1.40657046,79.019,78.996,12.6588688]
[1771873928636,1.40657046,79.019,78.997,1.32463767]
[1771873930562,1.40657046,79.019,78.998,13.98318598]
[1771873931767,1.40657046,79.019,78.999,1.32463767]
[1771873933046,1.40657046,79.019,78.971,63.31385755]
[1771873933047,1.40657046,79.017,78.978,1.32463767]
[1771873933250,1.40657046,79.009,78.971,1.32463767]
[1771873934375,1.40657046,78.989,78.95,5.42663598]
[1771873934549,1.40657046,78.989,78.954,1.32463767]
[1771873934947,1.40657046,79.009,78.971,1.32463767]
[1771873935652,1.40657046,79.008,78.971,1.32463767]
[1771873936669,1.40657046,79.006,78.972,1.32463767]
[1771873936872,1.40657046,78.999,78.972,1.32463767]
[1771873938560,1.44541188,79.006,78.972,1.32463767]
[1771873938747,1.44541188,79.006,78.971,44.31991369]
[1771873938748,1.44541188,79.004,78.974,1.43821354]
[1771873938952,1.44541188,79.004,78.981,1.43821354]
[1771873941361,5.42663598,79.0,78.975,1.31718943]
[1771873941668,1.38328731,78.999,78.975,1.31718943]
[1771873941864,5.42663598,78.99,78.971,12.66275223]
[1771873942072,1.38328731,78.998,78.971,13.97994166]
[1771873942770,1.38328731,78.989,78.971,12.66275223]
[1771873944276,1.38328731,78.989,78.966,13.98086746]
[1771873944473,1.38328731,78.989,78.967,1.31718943]
[1771873944674,1.38328731,78.996,78.967,1.31718943]
[1771873946380,1.38328731,78.996,78.969,1.31718943]
[1771873947489,5.42663598,79.0,78.971,1.31718943]
[1771873947490,1.38328731,79.0,78.971,1.31718943]
[1771873947687,1.38328731,79.012,78.981,1.31718943]
[1771873947993,1.38328731,79.018,78.991,1.31718943]
[1771873948175,1.38328731,79.024,79.001,1.31718943]
[1771873948371,1.38328731,79.024,79.003,1.31718943]
[1771873948783,1.38328731,79.035,79.003,1.31718943]
[1771873950285,44.28249701,79.038,79.003,1.31718943]
[1771873950286,1.38328731,79.029,79.003,1.31718943]
[1771873950973,1.38328731,79.019,78.984,1.31718943]
[1771873951173,1.38328731,79.009,78.982,12.66111265]
[1771873951391,1.38328731,79.009,78.983,1.31718943]
[1771873952372,1.38328731,79.019,78.983,1.31718943]
[1771873953588,1.38328731,79.017,78.983,1.31718943]
[1771873955282,1.38328731,79.017,78.984,12.66079205]
[1771873955492,1.38328731,79.017,78.985,1.31718943]
[1771873956891,1.38328731,79.017,78.986,12.66047147]
[1771873957094,12.65566467,79.016,78.991,1.31718943]
[1771873957472,1.38328731,79.024,79.001,1.31718943]
[1771873957871,1.38328731,79.037,79.001,1.31718943]
[1771873958087,5.42029787,79.03,79.001,1.31718943]
[1771873958293,1.38328731,79.029,79.001,1.31718943]
[1771873959082,1.38328731,79.009,78.98,1.31718943]
[1771873959393,1.38328731,79.009,78.973,1.31718943]
[1771873959985,1.38328731,79.009,78.98,5.42029787]
[1771873960190,1.38328731,79.009,78.98,6.7374873]
[1771873960384,1.38328731,79.009,78.98,1.31718943]
[1771873960784,1.38328731,79.009,78.981,1.31718943]
[1771873961196,1.38328731,79.018,78.983,1.31718943]
[1771873961908,44.29314468,79.019,78.974,31.65567316]
[1771873961909,1.38328731,79.009,78.975,1.31718943]
[1771873963705,5.42029787,79.0,78.977,1.31718943]
[1771873963893,1.38328731,78.999,78.971,1.31718943]
[1771873964114,1.38328731,78.989,78.966,12.66367803]
[1771873964303,1.38328731,78.989,78.963,1.31718943]
[1771873965402,1.38328731,78.979,78.957,12.66500749]
[1771873965797,1.38328731,78.979,78.957,1.31718943]
[1771873966185,1.38328731,78.979,78.951,12.66608402]
[1771873966505,1.38328731,78.979,78.951,13.98327345]
[1771873967005,5.42029787,78.98,78.952,1.31718943]
[1771873967006,1.38328731,78.977,78.952,1.31718943]
[1771873969606,1.31049058,78.985,78.954,1.33639175]
[1771873970087,0.31049058,78.985,78.954,1.33639175]
[1771873971503,18.08022687,78.99,78.956,1.33639175]
[1771873971701,18.08022687,78.99,78.961,1.33639175]
[1771873973008,12.65881399,78.997,78.971,1.33639175]
[1771873973809,12.65694613,79.008,78.981,1.33639175]
[1771873975002,13.96743671,79.008,78.981,1.33639175]
[1771873975208,1.31049058,79.007,78.981,1.33639175]
[1771873975912,12.65726653,79.006,78.982,1.33639175]
[1771873977105,1.31049058,78.999,78.971,12.6628333]
[1771873977306,1.31049058,78.999,78.971,13.99922505]
[1771873978605,1.31049058,78.997,78.972,1.33639175]
[1771873980796,12.6588688,78.996,78.974,1.33639175]
[1771873981198,1.31049058,78.995,78.974,1.33639175]
[1771873982815,18.07861593,79.0,78.976,1.33639175]
[1771873982996,1.31049058,79.008,78.976,1.33639175]
[1771873983522,1.31049058,78.999,78.976,1.33639175]
[1771873984617,1.31049058,78.989,78.949,1.33639175]
[1771873984797,1.31049058,78.979,78.949,1.33639175]
[1771873985001,1.31049058,78.969,78.949,1.33639175]
[1771873985415,5.42029787,78.96,78.943,1.33639175]
[1771873985618,1.31049058,78.959,78.936,1.33639175]
[1771873986116,44.31613866,78.978,78.936,1.33639175]
[1771873986326,1.31049058,78.98,78.92,5.42029787]
[1771873986327,5.42029787,78.98,78.951,1.33639175]
[1771873986509,6.73078845,78.98,78.951,1.33639175]
[1771873986709,1.31049058,78.979,78.951,1.33639175]
[1771873987224,5.42029787,78.97,78.951,1.33639175]
[1771873987424,1.31049058,78.959,78.937,14.00469043]
[1771873987603,1.31049058,78.959,78.938,1.33639175]
[1771873988004,5.42029787,78.96,78.938,1.33639175]
[1771873989424,1.31049058,78.965,78.939,12.66800947]
[1771873989619,1.31049058,78.965,78.94,1.33639175]
[1771873989823,12.66399878,78.964,78.94,1.33639175]
[1771873990620,13.97448936,78.964,78.94,1.33639175]
[1771873992037,13.97448936,78.964,78.942,1.33639175]
[1771873994032,1.31049058,78.963,78.935,1.33639175]
[1771873994235,1.31049058,78.959,78.935,1.33639175]
[1771873995020,5.42029787,78.95,78.929,1.33639175]
[1771873995210,1.31049058,78.949,78.929,1.33639175]
[1771873995729,1.31049058,78.949,78.93,12.66945394]
[1771873996720,13.97705591,78.948,78.929,1.33639175]
[1771873997126,1.31049058,78.948,78.929,1.33639175]
[1771873997916,12.66672577,78.947,78.929,1.33639175]
[1771873999237,1.37143349,78.939,78.911,14.09451592]
[1771873999436,6.79173136,78.93,78.912,1.42201146]
[1771873999637,1.37143349,78.929,78.907,1.42201146]
[1771874000015,1.41187238,78.927,78.907,1.42201146]
[1771874001232,5.42029787,78.92,78.9,1.34043342]
[1771874001820,1.41187238,78.925,78.9,1.34043342]
[1771874003545,5.42029787,78.92,78.9,1.34043342]
[1771874004039,5.42029787,78.92,78.901,1.34043342]
[1771874004445,1.41187238,78.919,78.893,1.34043342]
[1771874004621,5.42029787,78.92,78.893,1.34043342]
[1771874004816,12.67041711,78.924,78.893,1.34043342]
[1771874007029,12.66881191,78.934,78.901,1.34043342]
[1771874007338,5.42029787,78.93,78.901,1.34043342]
[1771874008532,14.08148684,78.929,78.903,1.34043342]
[1771874008726,1.41187238,78.928,78.903,1.34043342]
[1771874010231,1.41187238,78.919,78.898,12.67459251]
[1771874010441,1.41187238,78.919,78.898,14.01502593]
[1771874010642,1.41187238,78.919,78.899,1.34043342]
[1771874011036,1.41187238,78.919,78.9,12.67427122]
[1771874011236,1.41187238,78.919,78.901,1.34043342]
[1771874011424,5.43614845,78.93,78.901,1.34043342]
[1771874011844,18.10561442,78.93,78.901,1.34043342]
[1771874012043,1.41187238,78.929,78.901,1.34043342]
[1771874012427,5.43614845,78.92,78.901,1.34043342]
[1771874012827,6.84802083,78.92,78.901,1.34043342]
[1771874014749,1.41187238,78.919,78.901,1.34043342]
[1771874014943,1.41187238,78.925,78.903,1.34043342]
[1771874017030,5.43614845,78.92,78.903,1.34043342]
[1771874017427,1.41187238,78.923,78.905,1.34043342]
[1771874019250,5.43614845,78.92,78.905,1.34043342]
[1771874020856,1.41187238,78.923,78.905,1.34043342]
[1771874021057,1.41187238,78.923,78.905,12.67343322]
[1771874021244,1.41187238,78.923,78.905,14.01386664]
[1771874021652,12.67073819,78.922,78.905,1.34043342]
[1771874021853,12.67073819,78.922,78.892,1.34043342]
[1771874021854,1.41187238,78.919,78.892,1.34043342]
[1771874022852,1.41187238,78.919,78.893,12.67539578]
[1771874023039,1.41187238,78.919,78.894,1.34043342]
[1771874023560,1.41187238,78.925,78.894,1.34043342]
[1771874025649,5.43614845,78.93,78.893,44.36388525]
[1771874025650,1.41187238,78.923,78.896,1.34043342]
[1771874026241,5.43614845,78.95,78.91,5.43614845]
[1771874026546,5.43614845,78.95,78.895,44.36276062]
[1771874026547,12.66528192,78.956,78.931,1.34043342]
[1771874032455,14.04403353,78.956,78.931,1.34043342]
[1771874035481,1.37875161,78.958,78.933,1.46130551]
[1771874037473,14.04308037,78.962,78.941,1.46130551]
[1771874037672,14.04308037,78.962,78.941,14.12893103]
[1771874037875,1.37875161,78.968,78.942,1.46130551]
[1771874038167,1.37875161,78.978,78.942,1.46130551]
[1771874040957,1.37875161,78.969,78.942,1.46130551]
[1771874041158,1.37875161,78.969,78.922,31.67651806]
[1771874041358,1.37875161,78.959,78.923,12.67057765]
[1771874041574,1.37875161,78.959,78.93,5.43614845]
[1771874043059,1.37875161,78.957,78.931,12.66929343]
[1771874043254,1.37875161,78.957,78.932,1.46130551]
[1771874045376,1.37875161,78.957,78.933,12.66897241]
[1771874045578,1.37875161,78.957,78.934,1.46130551]
[1771874045776,1.37875161,78.963,78.941,1.46130551]
[1771874045966,1.37875161,78.976,78.951,1.46130551]
[1771874047372,1.37875161,78.975,78.951,1.46130551]
[1771874047872,1.37875161,78.979,78.953,1.46130551]
[1771874048072,1.37875161,78.979,78.961,1.46130551]
[1771874048854,37.08598869,78.99,78.963,1.46130551]
[1771874048855,12.6601509,78.988,78.963,1.46130551]
[1771874049361,1.37875161,78.989,78.963,1.46130551]
[1771874050477,14.03878663,78.989,78.964,12.66399878]
[1771874050682,1.37875161,78.988,78.965,1.46130551]
[1771874050883,1.37875161,78.988,78.971,1.46130551]
[1771874051067,12.66003502,78.989,78.971,1.46130551]
[1771874051268,14.03878663,78.989,78.971,1.46130551]
[1771874051567,12.65949757,78.993,78.971,1.46130551]
[1771874051877,1.37875161,78.992,78.971,1.46130551]
[1771874052075,1.37875161,78.992,78.965,1.46130551]
[1771874052384,1.37875161,78.992,78.971,1.46130551]
[1771874052976,1.37875161,78.99,78.971,1.46130551]
[1771874053281,12.65967008,78.991,78.971,1.46130551]
[1771874053681,1.37875161,78.99,78.97,5.43614845]
[1771874053885,1.37875161,78.99,78.965,1.46130551]
[1771874054887,1.37875161,78.979,78.95,5.43614845]
[1771874055061,1.37875161,78.977,78.945,1.46130551]
[1771874055881,1.37875161,78.977,78.95,5.43614845]
[1771874056189,12.6617539,78.978,78.944,12.66714722]
[1771874056190,1.37875161,78.969,78.944,12.66714722]
[1771874056590,1.37875161,78.967,78.941,14.12899403]
[1771874057986,1.37875161,78.967,78.94,5.43614845]
[1771874057987,1.46930856,78.959,78.936,1.43192287]
[1771874058283,1.46930856,78.959,78.935,12.66856436]
[1771874059580,1.46930856,78.958,78.932,1.43192287]
[1771874062266,1.46930856,78.958,78.94,6.86789179]
[1771874062471,1.46930856,78.958,78.94,1.43174334]
[1771874063089,37.09397177,78.97,78.94,1.43174334]
[1771874063791,5.43614845,78.97,78.94,1.43174334]
[1771874063994,5.43614845,78.96,78.934,1.43174334]
[1771874064380,5.43614845,78.97,78.935,12.66865142]
[1771874064582,5.43614845,78.97,78.936,1.43174334]
[1771874064974,1.34761856,78.969,78.936,1.43174334]
[1771874068577,1.34761856,78.969,78.906,63.36596459]
[1771874068578,1.34761856,78.949,78.915,1.43174334]
[1771874068883,1.34761856,78.939,78.915,1.43174334]
[1771874069083,1.34761856,78.939,78.91,1.43174334]
[1771874069587,5.43614845,78.96,78.891,1.43174334]
[1771874069588,1.34761856,78.919,78.891,1.43174334]
[1771874069984,1.34761856,78.919,78.892,1.43174334]
[1771874071295,3.69383402,78.952,78.89,5.53614845]
[1771874071296,12.67080433,78.922,78.894,1.43174334]
[1771874071500,1.34761856,78.938,78.911,1.43174334]
[1771874073309,1.34761856,78.936,78.911,1.43174334]
[1771874075200,3.69383402,78.952,78.911,1.43174334]
[1771874075201,1.34761856,78.949,78.911,1.43174334]
[1771874075408,1.34761856,78.949,78.921,1.43174334]
[1771874081694,1.34761856,78.949,78.894,5.36086188]
[1771874081695,12.66480251,78.959,78.923,1.43174334]
[1771874081907,1.34761856,78.958,78.931,1.43174334]
[1771874082099,5.43444718,78.95,78.931,1.43174334]
[1771874082906,1.34761856,78.939,78.914,1.43174334]
[1771874083112,1.34761856,78.929,78.908,1.43174334]
[1771874084104,12.66977498,78.928,78.908,1.43174334]
[1771874084720,12.66977498,78.928,78.89,0.1]
[1771874084721,1.34761856,78.919,78.89,0.1]
[1771874084927,1.34761856,78.899,78.87,1.53174334]
[1771874085096,1.34761856,78.879,78.85,1.53174334]
[1771874085399,1.34761856,78.879,78.855,1.43174334]
[1771874085990,12.67780623,78.878,78.855,1.43174334]
[1771874088390,5.43444718,78.88,78.856,12.6813432]
[1771874088705,5.43444718,78.88,78.86,1.59587933]
[1771874088889,18.11201475,78.88,78.86,1.59587933]
[1771874092213,5.43444718,78.89,78.862,1.50315857]
[1771874092406,12.67523512,78.894,78.86,0.1]
[1771874092407,1.38692038,78.879,78.86,0.1]
[1771874093013,1.38692038,78.879,78.86,1.60315857]
[1771874093394,5.43444718,78.88,78.86,1.60315857]
[1771874095422,0.28287545,78.861,78.86,1.60315857]
[1771874095718,18.11201112,78.88,78.86,1.60315857]
[1771874096014,12.67756394,78.88,78.86,1.60315857]
[1771874096619,5.43444718,78.88,78.86,1.60315857]
[1771874097317,1.38692038,78.886,78.861,1.50315857]
[1771874098432,1.38692038,78.879,78.86,0.1]
[1771874098604,12.67780623,78.878,78.86,0.1]
[1771874098797,12.67780623,78.878,78.86,1.60315857]